Cogmind - Beta 12 @@@ ROGUE MODE // 2024.02.09 @ 10:19:50 Player: Six of Ten Result: Destroyed by G-47 Trooper with Particle Gun Performance ------------- Evolutions (2) 1000 Regions Visited (6) 1200 Robots Destroyed (12) 60 Value Destroyed (218) 218 Prototype IDs (24) 480 Alien Tech Used (0) 0 Bonus (300) 300 TOTAL SCORE: 3258 Bonus ------- Aligned with FarCom 300 Cogmind --------- Core Integrity 0/550 Matter 300/300 Energy 100/100 System Corruption 0% Temperature Cool (9) Movement Core (50) Location -8/Storage Parts ------- > --- POWER (1) -------- (None) > --- PROPULSION (4) --- (None) > --- UTILITY (3) ------ (None) > --- WEAPON (3) ------- (None) > --- INVENTORY (5) ---- (None) Peak State ------------ > --- POWER ------------ Ion Engine > --- PROPULSION ------- Aluminum Leg Flight Unit > --- UTILITY ---------- Lightpack 2.0 > --- WEAPON ----------- Heavy Particle Gun > --- INVENTORY -------- (None) [Rating: 37] Favorites ----------- Power Ion Engine Engine Ion Engine Propulsion Aluminum Leg Leg Aluminum Leg Flight Unit Flight Unit Utility Small Storage Unit Storage Small Storage Unit Weapon Light Assault Rifle Energy Gun Heavy Particle Gun Ballistic Gun Light Assault Rifle Build | -11 -10 -10 -10 -9 -8 -8 ------- Run | Jun Mat Min Exi Min Mat Sto Slots Evolved 4 | . . . . . 4 . Power . | . . . . . . . Propulsion 2 | . . . . . 2 . Utility 1 | . . . . . 1 . Weapon 1 | . . . . . 1 . Parts Attached 20 | 6 . . . 7 4 3 Power 3 | 1 . . . . 1 1 Engine 3 | 1 . . . . 1 1 Core . | . . . . . . . Reactor . | . . . . . . . Propulsion 8 | 2 . . . 4 1 1 Treads . | . . . . . . . Leg 4 | 2 . . . . 1 1 Wheel . | . . . . . . . Hover . | . . . . . . . Flight 4 | . . . . 4 . . Utility 2 | 1 . . . . 1 . Device . | . . . . . . . Storage 2 | 1 . . . . 1 . Processor . | . . . . . . . Hackware . | . . . . . . . Protection . | . . . . . . . Artifact . | . . . . . . . Weapon 7 | 2 . . . 3 1 1 Energy Gun 2 | . . . . . 1 1 Energy Cannon . | . . . . . . . Ballistic Gun 5 | 2 . . . 3 . . Ballistic Cannon . | . . . . . . . Launcher . | . . . . . . . Special Weapon . | . . . . . . . Impact Weapon . | . . . . . . . Slashing Weapon . | . . . . . . . Piercing Weapon . | . . . . . . . Special Melee Weapon . | . . . . . . . Unidentified Prototypes 1 | . . . . . 1 . Parts Lost 11 | . . . . 6 . 5 Power 1 | . . . . . . 1 Propulsion 7 | . . . . 4 . 3 Utility . | . . . . . . . Weapon 3 | . . . . 2 . 1 Highest Loss Streak 6 | . . . . 6 . 4 To Critical Strikes . | . . . . . . . Average Slot Usage (%) 74 | . 85 85 85 84 36 33 Engine 12 | . 14 14 14 13 9 8 Leg 23 | . 28 28 28 25 9 7 Flight 1 | . . . . 2 9 5 Storage 12 | . 14 14 14 14 9 8 Ballistic Gun 22 | . 28 28 28 28 . . Naked Turns 6 | . . . . . . 6 Heaviest Build 13 | 13 13 13 13 13 13 13 Greatest Support 20 | 20 20 20 20 20 10 10 Greatest Overweight (x) 3 | . . . . . 1 3 Average Overweight (x) . | . . . . . . . Largest Inventory Capacity 40 | 8 8 8 8 8 40 40 Average Capacity 13 | 6 8 8 8 7 39 38 Most Carried 8 | 4 8 8 8 8 4 1 Average Carried 6 | 2 6 8 7 7 . . Final Capacity 40 | 8 8 8 8 5 40 5 Final Carried 8 | 4 8 8 8 5 . . Class Distribution -------------------- 80% | Mutant 19% | Hauler-Mutant Dominant Class ---------------- Mutant | -10/Materials Mutant | -10/Mines Mutant | -10/Exiles Mutant | -9/Mines Hauler-Mutant | -8/Materials Hauler-Mutant | -8/Storage Resources | -11 -10 -10 -10 -9 -8 -8 ----------- Run | Jun Mat Min Exi Min Mat Sto Matter Collected 419 | 248 52 . . 74 . 45 Remotely . | . . . . . . . Salvage Created 264 | . 118 . . 45 . 101 Parts 23 | . 13 . . 5 . 5 Haulers Intercepted . | . . . . . . . Recyclers Shooed . | . . . . . . . Parts Field Recycled . | . . . . . . . Retrieved Matter . | . . . . . . . Parts Self-Destructed . | . . . . . . . Prevented . | . . . . . . . Kills | -11 -10 -10 -10 -9 -8 -8 ------- Run | Jun Mat Min Exi Min Mat Sto Combat Hostiles Destroyed 12 | . 7 . . 3 . 2 Guns 12 | . 7 . . 3 . 2 Classes Destroyed 3 | . 2 . . . . 1 Swarmer 9 | . 6 . . 3 . . Grunt 2 | . 1 . . . . 1 Duelist 1 | . . . . . . 1 Best Kill Streak 6 | . 6 . . 3 . 2 Combat Bots Only 6 | . 6 . . 3 . 2 Max Kills in Single Turn 2 | . 2 . . 1 . 1 Gunslinging 1 | . 1 . . . . . Exploded . | . . . . . . . Melee . | . . . . . . . Uniques/NPCs Destroyed . | . . . . . . . Combat | -11 -10 -10 -10 -9 -8 -8 -------- Run | Jun Mat Min Exi Min Mat Sto Damage Taken 1714 | . 150 . . 455 115 994 Core 641 | . 23 . . 62 59 497 Absorbed by Shields . | . . . . . . . Core Remaining (%) 83 | 100 . . . 66 . . Volleys Fired 32 | . 15 . . 7 . 10 Largest 2 | . 2 . . 2 . 1 Hottest 55 | . 40 . . 40 . 55 Shots Fired 54 | . 30 . . 14 . 10 Gun 54 | . 30 . . 14 . 10 Cannon . | . . . . . . . Launcher . | . . . . . . . Special . | . . . . . . . Kinetic 44 | . 30 . . 14 . . Thermal 10 | . . . . . . 10 Explosive . | . . . . . . . Electromagnetic . | . . . . . . . Robot Hit Streak 15 | . 6 . . 7 . 15 Robot Miss Streak 3 | . 3 . . 2 . . Penetration Max . | . . . . . . . Secondary Targets 3 | . 3 . . . . . Max Gunslinging Chain 1 | . 1 . . . . . Shots Hit Robots 42 | . 22 . . 10 . 10 Core Hits 19 | . 10 . . 4 . 5 Critical Kills . | . . . . . . . Critical Parts Destroyed . | . . . . . . . Critical Strikes 1 | . . . . . . 1 Burn 1 | . . . . . . 1 Melee Attacks . | . . . . . . . Impact . | . . . . . . . Slashing . | . . . . . . . Piercing . | . . . . . . . Sneak Attacks . | . . . . . . . Combat Hostiles . | . . . . . . . Follow-up Attacks . | . . . . . . . Damage Inflicted 575 | . 232 . . 128 . 215 Guns 547 | . 232 . . 128 . 187 Cannons . | . . . . . . . Explosions . | . . . . . . . Melee . | . . . . . . . Ramming 28 | . . . . . . 28 Kinetic 360 | . 232 . . 128 . . Thermal 187 | . . . . . . 187 Explosive . | . . . . . . . Electromagnetic . | . . . . . . . Impact . | . . . . . . . Slashing . | . . . . . . . Piercing . | . . . . . . . Highest Corruption . | . . . . . . . Average Corruption . | . . . . . . . Corruption Purged . | . . . . . . . Corruption Blocked . | . . . . . . . Overload Shots . | . . . . . . . Overflow Damage . | . . . . . . . Projectiles . | . . . . . . . Explosions . | . . . . . . . Melee . | . . . . . . . Knockbacks . | . . . . . . . Impact . | . . . . . . . Kinetic . | . . . . . . . Secondary . | . . . . . . . Self-Inflicted Damage . | . . . . . . . Shots . | . . . . . . . Rammed 1 | . . . . . . 1 Targets Rammed 11 | . . . . . . 11 Kicked 10 | . . . . . . 10 Crushed . | . . . . . . . Highest Temperature 70 | . 6 . . 20 . 70 Average Temperature 25 | . 6 . . 15 . 27 Received Heat Transfer 470 | . 18 . . 47 27 378 Siege Activations . | . . . . . . . Robots Corrupted . | . . . . . . . Combat Hostiles . | . . . . . . . Parts Fried . | . . . . . . . Impact Corruptions . | . . . . . . . Robots Melted . | . . . . . . . Combat Hostiles . | . . . . . . . Parts Melted . | . . . . . . . Heat Transferred 444 | . . . . . . 444 Parts Sabotaged . | . . . . . . . Parts Stolen . | . . . . . . . Parts Stripped . | . . . . . . . Power Chain Reactions . | . . . . . . . Missiles Intercepted . | . . . . . . . Alert | -11 -10 -10 -10 -9 -8 -8 ------- Run | Jun Mat Min Exi Min Mat Sto Peak Influence 231 | . 231 90 . 70 43 117 Initial 90 | . . 90 . . 9 17 Average 64 | . 112 90 . 65 21 54 Maximum Alert Level 1 | . 1 . . . . . Low Security (%) 96 | 100 82 100 . 100 100 100 Level 1 3 | . 17 . . . . . Level 2 . | . . . . . . . Level 3 . | . . . . . . . Level 4 . | . . . . . . . Level 5 . | . . . . . . . High Security . | . . . . . . . Max Security . | . . . . . . . Squads Dispatched 2 | . 2 . . . . . Investigation 1 | . 1 . . . . . Extermination . | . . . . . . . Reinforcement 1 | . 1 . . . . . Assault . | . . . . . . . Garrison . | . . . . . . . Intercept . | . . . . . . . Searches Triggered . | . . . . . . . Construction Impeded . | . . . . . . . Haulers Reinforced . | . . . . . . . Active Scanning Responses . | . . . . . . . Cargo Convoy Interrupts . | . . . . . . . Stealth | -11 -10 -10 -10 -9 -8 -8 --------- Run | Jun Mat Min Exi Min Mat Sto Distress Signals 1 | . . . . . . 1 Communications Jammed . | . . . . . . . Distress Signals . | . . . . . . . Times Spotted 42 | . 12 . . 17 2 11 Peak Tracking Total 17 | . 6 . . 17 3 8 Tactical Retreats 3 | . . . . 1 . 2 Traps | -11 -10 -10 -10 -9 -8 -8 ------- Run | Jun Mat Min Exi Min Mat Sto Traps Triggered 1 | . . . . . . 1 Indirectly . | . . . . . . . Trap Hack Attempts . | . . . . . . . Triggered . | . . . . . . . Disarmed 7 | . 1 . . . 6 . Reprogrammed . | . . . . . . . Reused . | . . . . . . . Traps Extracted . | . . . . . . . Installed . | . . . . . . . Triggered . | . . . . . . . Machines | -11 -10 -10 -10 -9 -8 -8 ---------- Run | Jun Mat Min Exi Min Mat Sto Machines Disabled . | . . . . . . . Max in Single Turn . | . . . . . . . Machines Repaired . | . . . . . . . Machines Sabotaged . | . . . . . . . Overloaded Fab Kills . | . . . . . . . Hacking | -11 -10 -10 -10 -9 -8 -8 --------- Run | Jun Mat Min Exi Min Mat Sto Machines Accessed 6 | . 3 . 2 . 1 . Terminals 4 | . 3 . . . 1 . Fabricators . | . . . . . . . Repair Stations . | . . . . . . . Recycling Units . | . . . . . . . Scanalyzers . | . . . . . . . Garrison Access . | . . . . . . . Total Hacks 28 | . 13 . 10 . 5 . Successful 19 | . 7 . 10 . 2 . Failed 9 | . 6 . . . 3 . Catastrophic 2 | . 1 . . . 1 . Database Lockouts . | . . . . . . . Manual 13 | . 7 . 1 . 5 . Terminals 18 | . 13 . . . 5 . Fabricators . | . . . . . . . Repair Stations . | . . . . . . . Recycling Units . | . . . . . . . Scanalyzers . | . . . . . . . Garrison Access . | . . . . . . . Terminal Hacks 19 | . 7 . 10 . 2 . Record 9 | . . . 9 . . . Robot Analysis 3 | . 3 . . . . . Alert Level 1 | . 1 . . . . . Locate Traps 2 | . 1 . . . 1 . Disarm Traps 2 | . 1 . . . 1 . Zone Layout 1 | . 1 . . . . . EX-Prototype ID Bank 1 | . . . 1 . . . Fabricator Hacks . | . . . . . . . Repair Station Hacks . | . . . . . . . Recycling Unit Hacks . | . . . . . . . Scanalyzer . | . . . . . . . Garrison Access Hacks . | . . . . . . . Unauthorized Hacks . | . . . . . . . Terminals . | . . . . . . . Fabricators . | . . . . . . . Repair Stations . | . . . . . . . Recycling Units . | . . . . . . . Scanalyzers . | . . . . . . . Garrison Access . | . . . . . . . Data Cores Recovered . | . . . . . . . Used . | . . . . . . . Hacking Detections 4 | . 3 . . . 1 . Full Trace Events 1 | . 1 . . . . . Feedback Events . | . . . . . . . Feedback Blocked . | . . . . . . . Robot Schematics Acquired . | . . . . . . . Robots Built . | . . . . . . . Authchips . | . . . . . . . Time . | . . . . . . . Total Robot Build Rating . | . . . . . . . Part Schematics Acquired . | . . . . . . . Parts Built . | . . . . . . . Authchips . | . . . . . . . Time . | . . . . . . . Total Part Build Rating . | . . . . . . . Parts Repaired . | . . . . . . . Time . | . . . . . . . Parts Recycled . | . . . . . . . Recycled Matter . | . . . . . . . Retrieved Matter . | . . . . . . . Retrieved Components . | . . . . . . . Parts Scanalyzed . | . . . . . . . Part Schematics Acquired . | . . . . . . . Parts Damaged . | . . . . . . . Bothacking | -11 -10 -10 -10 -9 -8 -8 ------------ Run | Jun Mat Min Exi Min Mat Sto Used RIF Installer . | . . . . . . . Robots Hacked . | . . . . . . . Non-combat . | . . . . . . . Combat . | . . . . . . . Robot Hacks Applied . | . . . . . . . Relay Couplers Released . | . . . . . . . Fabnet Peak Effective % . | . . . . . . . Robots Rewired . | . . . . . . . Allies Hacked . | . . . . . . . Hacks Repelled . | . . . . . . . Allies | -11 -10 -10 -10 -9 -8 -8 -------- Run | Jun Mat Min Exi Min Mat Sto Total Allies 2 | . . 2 . . . . Largest Group 2 | . . 2 2 . . . Highest-Rated Group 42 | . . 42 42 . . . Highest-Rated Ally 31 | . . 31 31 . . . Total Orders . | . . . . . . . Ally Attacks . | . . . . . . . Total Damage . | . . . . . . . Kills . | . . . . . . . Allies Corrupted . | . . . . . . . Allies Melted . | . . . . . . . Intel | -11 -10 -10 -10 -9 -8 -8 ------- Run | Jun Mat Min Exi Min Mat Sto Robot Analysis Total 3 | . 3 . . . . . Derelict Logs Recovered 1 | . . . . 1 . . Drone Launches . | . . . . . . . Drone Recoveries . | . . . . . . . Exploration | -11 -10 -10 -10 -9 -8 -8 ------------- Run | Jun Mat Min Exi Min Mat Sto Turns Passed 1599 | 80 185 104 728 208 113 181 Spaces Moved 1213 | 60 101 84 605 170 91 102 Core 28 | 11 . . . . . 17 Treads . | . . . . . . . Legs 1151 | 49 101 84 605 136 91 85 Wheels . | . . . . . . . Hover . | . . . . . . . Flight 34 | . . . . 34 . . Fastest Speed 37 | 50 120 120 120 37 120 50 Average Speed 118 | 107 120 120 120 103 120 132 Slowest Speed 200 | 120 120 120 120 120 190 200 Overloaded Moves . | . . . . . . . Propulsion Burnouts . | . . . . . . . Robots Hopped . | . . . . . . . Cave-ins Triggered . | . . . . . . . Exploration Rate (%) 33 | 4 37 22 92 52 7 22 Regions Visited 6 Branch Regions 4 Pre-discovered Areas . | . . . . . . . Known Exits Taken . | . . . . . . . Unknown Exits Taken 6 | 1 1 1 1 1 1 . Scrap Searched . | . . . . . . . Spaces Dug . | . . . . . . . Terrain Destroyed . | . . . . . . . Melee . | . . . . . . . Projectile . | . . . . . . . AOE . | . . . . . . . Terrain Rammed . | . . . . . . . Walls Destroyed . | . . . . . . . Machines Disabled . | . . . . . . . Actions | -11 -10 -10 -10 -9 -8 -8 --------- Run | Jun Mat Min Exi Min Mat Sto Total 1327 | 75 138 87 608 190 95 134 Wait 27 | . 19 4 . 2 . 2 Move 1207 | 59 100 83 604 169 90 102 Hop . | . . . . . . . Pick Up 17 | 10 4 . 1 . 1 1 Fast Attach 1 | . . . . 1 . . Attach 16 | 6 . . . 3 4 3 Detach 2 | . . . . . . 2 Swap 3 | . . . . 3 . . Drop 9 | . . . 3 5 . 1 Fire 32 | . 15 . . 7 . 10 Melee . | . . . . . . . Ram 1 | . . . . . . 1 Kick 10 | . . . . . . 10 Crush . | . . . . . . . Escape Stasis . | . . . . . . . Rewire 2 | . . . . . . 2 Trap . | . . . . . . . Miscellaneous . | . . . . . . . Route ------- -11/Junkyard -10/Materials (discovered 2 exits: [*Min x2]) -10/Mines -10/Exiles (discovered 2 exits: [*Min x2]) -9/Mines -8/Materials -8/Storage History --------- Turn | Location | Event 3 | -11/Junkyard | Discovered new exit (range 15) 81 | -11/Junkyard | Entered Materials 192 | -10/Materials | Discovered new exit (range 16) 248 | -10/Materials | Discovered new exit (range 14) 266 | -10/Materials | Entered Mines 310 | -10/Mines | Build established: Mutant 360 | -10/Mines | Deemed a non-threat by the Exiles lab entrance 361 | -10/Mines | Discovered new exit (range 5) 370 | -10/Mines | Entered Exiles 370 | -10/Exiles | Accompanied by 2 allies 398 | -10/Exiles | Met 8R-AWN 400 | -10/Exiles | Led the pair of lost Derelicts to a safe place 420 | -10/Exiles | Met EX-HEX 472 | -10/Exiles | Met EX-DEC 566 | -10/Exiles | Discovered new exit (range 11) 661 | -10/Exiles | Visited The Gauntlet 883 | -10/Exiles | Met EX-BIN 904 | -10/Exiles | Aligned with FarCom system 906 | -10/Exiles | Given EX-Vault access code 955 | -10/Exiles | Opened EX-Vault 965 | -10/Exiles | Found Lightpack 2.0 1003 | -10/Exiles | Warned to stay clear of 0b10 Research branches 1082 | -10/Exiles | Discovered new exit (range 15) 1098 | -10/Exiles | Left Exiles lab with Lightpack 2.0 1098 | -10/Exiles | Entered Mines 1126 | -9/Mines | Met a Derelict bent on vengeance 1144 | -9/Mines | Learned Materials emergency access door positions 1268 | -9/Mines | Assembled infested the area 1298 | -9/Mines | Discovered new exit (range 15) 1306 | -9/Mines | Entered Materials 1306 | -8/Materials | Evolved 4 slots: Propulsion x2, Utility x1, Weapon x1 1334 | -8/Materials | Lost 6 parts (4n2w) 1367 | -8/Materials | Discovered new exit (range 10) 1419 | -8/Materials | Entered Storage 1585 | -8/Storage | Core integrity fell below 50% 1586 | -8/Storage | Build established: Hauler-Mutant 1597 | -8/Storage | Core integrity fell below 20% 1600 | -8/Storage | Destroyed by G-47 Trooper with Particle Gun Last Messages --------------- 01575_ Kicked Y-45 Defender. 01576_ Kicked Y-45 Defender out of the way. 01577_ Kicked Y-45 Defender. 01579_ Aluminum Leg destroyed. 01581_ Slammed into Y-45 Defender. 01587_ Attempting to rewire R-06 Scavenger. 01587_ R-06 Scavenger is broken beyond repair. 01588_ Attempting to rewire R-06 Scavenger. 01588_ R-06 Scavenger is broken beyond repair. 01590_ T-07 Excavator is excavating. 01590_ Ion Engine destroyed. 01590_ Critical hit (Burn: +37). 01593_ Triggered Explosive Trap. 01593_ An explosion rips through the floor. 01593_ T-07 Excavator is excavating. 01594_ Dropped Lightpack 2.0. 01596_ The unstable cave ceiling collapses. 01596_ U-05 Engineer lays Concrete. 01597_ T-07 Excavator is excavating. 01598_ U-05 Engineer lays Concrete. Map ----- +----------------------------------------------------+ | | | | | | | | | | | | | | | | | | | | | | | ?????????????????????????????????????????????????? | | ?????#########???????????????????????????????????? | | ?????# ! ! #???????????????????????????????????? | | ?????# #???????????????????????????????????? | | ###### !#???????????????#???????????????????? | | + = |#?????????????? #???????????????????? | | # ! #?????????????? ????????????????????? | | ##+##+###?????????????? ????????????????????? | | #??????????#+#?? #????????????????????? | | ####### #######????# #?? #????????????????????? | | ??????# # #????# #?# ##???????????????????? | | ??#####/## + ###### ## ##??????????????????? | | ?## # # + ?????????????????? | | """ """ %# #! Y ### #???????????????????? | | "R """ %+%/%YY #?# @########???????????????? | | """ """ #%#Y #?# +????o??????????? | | ?## # # g !### ######????????????????? | | ??# # ### ## T "#????????????????????? | | ??######## ! T#????????????????????? | | ?????????# "#????????????????????? | | ?????????# u ##????????????????????? | | ?????????# gg +??????????????????? | | ?????????# #??????????????????? | | ???????? ] #??????????????????? | | ???????###### / ?????????????????? | | ????????????##t##### ####### ????????????????? | | ????????????? ????# #??????? ???????????????? | | ????????????###????# #???????Y#???????????????? | | ???????????????????# #????????????????????????? | | ???????????????????#/##+#????????????????????????? | | ??????????????????? ????????????????????????????? | | ???????????????????? ????????????????????????????? | | ?????????????????????????????????????????????????? | | ?????????????????????????????????????????????????? | | ?????????????????????????????????????????????????? | | ?????????????????????????????????????????????????? | | ?????????????????????????????????????????????????? | | ?????????????????????????????????????????????????? | | ?????????????????????????????????????????????????? | +----------------------------------------------------+ Best States ------------- Heat Dissipation 31 Energy Generation 10 Energy Capacity 250 Matter Stores 300 Matter Capacity 300 Sight Range 16 Terrain Scan Density 10 Evasion (%) 62 Item Schematics ----------------- None Robot Schematics ------------------ None Fabricated ------------ Nothing Alien Tech Used ----------------- None Achievements -------------- Armchair Analyst root@ Challenges ------------ None Game ------ Seed SpliceAluminumThruster Manual? 0 Play Time 00:22:06 Cumulative 12.8 hours Start 2024.02.09 @ 09:58:55 End 2024.02.09 @ 10:19:50 Sessions 1 Manual Loads 0 Difficulty Rogue Special Mode None Game No. 19 Rogue 19 Adventurer 0 Explorer 0 Win Type - Total 0 Types 0/0/0/0/0/0/0/0/0 Lore% 12 Gallery% 21 Achievement% 19 Wizard Run 0 Options --------- ASCII 1 Keyboard 0 Movement Numpad Keybinds 0 Fullscreen 2 Font 18/SmallcapsGlow Map View 76x50 Tactical HUD 1 Map Filters NONE Filters NONE Steam 1 RUN: 3eb2b1dc-b3d7-432e-a725-e085c5dee622